[Event "December 19 Late 2023"]
[Site "https://www.chess.com"]
[Date "2023.12.19"]
[Round "1"]
[White "Phillips, Rene"]
[Black "Vafin, Ayrat"]
[Result "0-1"]
[Board "184"]
[TimeControl "180+1"]
[WhiteFideId "2056275"]
[BlackFideId "4146530"]
[WhiteElo "2031"]
[BlackElo "2317"]
[WhiteTeam "USA"]
[BlackTeam "RUS"]
[WhiteClock "0:00:07"]
[BlackClock "0:00:52"]

1. Nf3 {[%clk 0:02:56]}  d5 {[%clk 0:02:57]} 2. d4 {[%clk 0:02:55]}  Nf6 {[%clk 0:02:56]} 3. Bf4 {[%clk 0:02:55]}  c5 {[%clk 0:02:55]} 4. e3 {[%clk 0:02:54]}  Nc6 {[%clk 0:02:55]} 5. Nbd2 {[%clk 0:02:52]}  g6 {[%clk 0:02:55]} 6. c3 {[%clk 0:02:52]}  Bg7 {[%clk 0:02:53]} 7. Bd3 {[%clk 0:02:52]}  O-O {[%clk 0:02:52]} 8. O-O {[%clk 0:02:52]}  Nd7 {[%clk 0:02:50]} 9. Bg5 {[%clk 0:02:41]}  Qc7 {[%clk 0:02:42]} 10. Bh4 {[%clk 0:02:39]}  e5 {[%clk 0:02:40]} 11. Bg3 {[%clk 0:02:38]}  Qb6 {[%clk 0:02:35]} 12. Qb3 {[%clk 0:02:31]}  e4 {[%clk 0:02:24]} 13. Nxe4 {[%clk 0:02:06]}  dxe4 {[%clk 0:02:21]} 14. Bxe4 {[%clk 0:02:06]}  Qxb3 {[%clk 0:02:14]} 15. axb3 {[%clk 0:02:05]}  cxd4 {[%clk 0:02:14]} 16. exd4 {[%clk 0:02:05]}  Nf6 {[%clk 0:02:12]} 17. Bd3 {[%clk 0:02:03]}  Bg4 {[%clk 0:02:08]} 18. Ne5 {[%clk 0:02:00]}  Nxe5 {[%clk 0:02:07]} 19. Bxe5 {[%clk 0:02:01]}  Nd5 {[%clk 0:02:02]} 20. Bxg7 {[%clk 0:02:00]}  Kxg7 {[%clk 0:02:03]} 21. Be4 {[%clk 0:01:51]}  Rfd8 {[%clk 0:01:49]} 22. h3 {[%clk 0:01:46]}  Bc8 {[%clk 0:01:37]} 23. b4 {[%clk 0:01:42]}  a6 {[%clk 0:01:32]} 24. b5 {[%clk 0:01:41]}  Nf6 {[%clk 0:01:23]} 25. Bf3 {[%clk 0:01:39]}  Rb8 {[%clk 0:01:24]} 26. bxa6 {[%clk 0:01:25]}  bxa6 {[%clk 0:01:24]} 27. Ra2 {[%clk 0:01:19]}  Bb7 {[%clk 0:01:17]} 28. Be2 {[%clk 0:01:15]}  Rd6 {[%clk 0:01:15]} 29. Rfa1 {[%clk 0:01:12]}  Rb6 {[%clk 0:01:15]} 30. b4 {[%clk 0:01:08]}  Nd5 {[%clk 0:01:12]} 31. Bxa6 {[%clk 0:00:58]}  Nxc3 {[%clk 0:01:06]} 32. Ra3 {[%clk 0:00:57]}  Rxa6 {[%clk 0:01:02]} 33. Rxa6 {[%clk 0:00:55]}  Bxa6 {[%clk 0:01:03]} 34. Rxa6 {[%clk 0:00:51]}  Rxb4 {[%clk 0:01:03]} 35. Rd6 {[%clk 0:00:45]}  Rxd4 {[%clk 0:01:03]} 36. Rc6 {[%clk 0:00:42]}  Ne4 {[%clk 0:01:03]} 37. f3 {[%clk 0:00:39]}  Rd1+ {[%clk 0:00:58]} 38. Kh2 {[%clk 0:00:39]}  Nd6 {[%clk 0:00:54]} 39. Rc7 {[%clk 0:00:38]}  h5 {[%clk 0:00:54]} 40. h4 {[%clk 0:00:37]}  Nf5 {[%clk 0:00:54]} 41. Rc4 {[%clk 0:00:32]}  Rd4 {[%clk 0:00:53]} 42. Rxd4 {[%clk 0:00:24]}  Nxd4 {[%clk 0:00:53]} 43. Kg3 {[%clk 0:00:23]}  Kf6 {[%clk 0:00:52]} 44. Kf4 {[%clk 0:00:21]}  Ne6+ {[%clk 0:00:51]} 45. Ke4 {[%clk 0:00:19]}  Nc5+ {[%clk 0:00:50]} 46. Kf4 {[%clk 0:00:18]}  Nd3+ {[%clk 0:00:50]} 47. Ke4 {[%clk 0:00:16]}  Ne1 {[%clk 0:00:50]} 48. g4 {[%clk 0:00:15]}  Ng2 {[%clk 0:00:50]} 49. g5+ {[%clk 0:00:13]}  Kg7 {[%clk 0:00:51]} 50. f4 {[%clk 0:00:13]}  Nxh4 {[%clk 0:00:51]} 51. Ke5 {[%clk 0:00:12]}  Nf5 {[%clk 0:00:52]} 52. Ke4 {[%clk 0:00:12]}  Kf8 {[%clk 0:00:52]} 53. Ke5 {[%clk 0:00:13]}  Ke7 {[%clk 0:00:51]} 54. Ke4 {[%clk 0:00:12]}  Ke6 {[%clk 0:00:51]} 55. Kf3 {[%clk 0:00:12]}  Kd5 {[%clk 0:00:51]} 56. Ke2 {[%clk 0:00:07]}  Ke4 {[%clk 0:00:52]} 0-1

[Event "December 19 Late 2023"]
[Site "https://www.chess.com"]
[Date "2023.12.19"]
[Round "1"]
[White "Rangel, Daniel"]
[Black "Gulamirian, Korun"]
[Result "1-0"]
[Board "185"]
[TimeControl "180+1"]
[WhiteFideId "2124475"]
[BlackFideId "4144899"]
[WhiteElo "2267"]
[BlackElo "1621"]
[WhiteTeam "BRA"]
[BlackTeam "RUS"]
[WhiteClock "0:00:38"]
[BlackClock "0:00:00"]

1. d4 {[%clk 0:02:54]}  Nf6 {[%clk 0:02:58]} 2. c4 {[%clk 0:02:33]}  c5 {[%clk 0:02:16]} 3. Nc3 {[%clk 0:02:34]}  cxd4 {[%clk 0:01:58]} 4. Qxd4 {[%clk 0:02:35]}  Nc6 {[%clk 0:01:56]} 5. Qd2 {[%clk 0:02:34]}  g6 {[%clk 0:01:55]} 6. b3 {[%clk 0:02:30]}  Bg7 {[%clk 0:01:55]} 7. Bb2 {[%clk 0:02:31]}  O-O {[%clk 0:01:54]} 8. g3 {[%clk 0:02:31]}  d6 {[%clk 0:01:50]} 9. Bg2 {[%clk 0:02:30]}  Qa5 {[%clk 0:01:43]} 10. Nh3 {[%clk 0:02:22]}  Ng4 {[%clk 0:01:29]} 11. O-O {[%clk 0:02:09]}  Bf5 {[%clk 0:01:24]} 12. Rad1 {[%clk 0:02:02]}  Rac8 {[%clk 0:01:22]} 13. Nf4 {[%clk 0:02:00]}  Nge5 {[%clk 0:01:17]} 14. Ncd5 {[%clk 0:01:46]}  Qd8 {[%clk 0:01:16]} 15. h3 {[%clk 0:01:35]}  a5 {[%clk 0:01:14]} 16. g4 {[%clk 0:01:35]}  Bd7 {[%clk 0:01:07]} 17. e3 {[%clk 0:01:32]}  Nb4 {[%clk 0:01:00]} 18. Nxb4 {[%clk 0:01:28]}  axb4 {[%clk 0:01:00]} 19. Nd5 {[%clk 0:01:28]}  e6 {[%clk 0:00:39]} 20. Nxb4 {[%clk 0:01:23]}  b5 {[%clk 0:00:37]} 21. cxb5 {[%clk 0:01:12]}  Bxb5 {[%clk 0:00:36]} 22. Rfe1 {[%clk 0:01:13]}  Qb6 {[%clk 0:00:27]} 23. f4 {[%clk 0:01:01]}  Nd7 {[%clk 0:00:22]} 24. Bxg7 {[%clk 0:01:01]}  Kxg7 {[%clk 0:00:21]} 25. Qxd6 {[%clk 0:00:58]}  Qxd6 {[%clk 0:00:21]} 26. Rxd6 {[%clk 0:00:57]}  Rc3 {[%clk 0:00:18]} 27. a4 {[%clk 0:00:51]}  Rxb3 {[%clk 0:00:10]} 28. axb5 {[%clk 0:00:50]}  Rxb4 {[%clk 0:00:10]} 29. Rxd7 {[%clk 0:00:49]}  Rxb5 {[%clk 0:00:10]} 30. Rb7 {[%clk 0:00:40]}  h5 {[%clk 0:00:00]} 31. Rxb5 {[%clk 0:00:38]} 1-0

[Event "December 19 Late 2023"]
[Site "https://www.chess.com"]
[Date "2023.12.19"]
[Round "1"]
[White "Reinecke, Katharina"]
[Black "Srdanovic, Jovana"]
[Result "0-1"]
[Board "186"]
[TimeControl "180+1"]
[WhiteFideId "12929727"]
[BlackFideId "954810"]
[WhiteElo "1761"]
[BlackElo "2123"]
[WhiteTeam "GER"]
[BlackTeam "SRB"]
[WhiteClock "0:00:09"]
[BlackClock "0:01:09"]

1. d4 {[%clk 0:02:58]}  d5 {[%clk 0:02:54]} 2. c4 {[%clk 0:02:58]}  c6 {[%clk 0:02:52]} 3. Nf3 {[%clk 0:02:56]}  Nf6 {[%clk 0:02:47]} 4. g3 {[%clk 0:02:56]}  g6 {[%clk 0:02:37]} 5. Bg2 {[%clk 0:02:55]}  Bg7 {[%clk 0:02:32]} 6. O-O {[%clk 0:02:55]}  O-O {[%clk 0:02:26]} 7. e3 {[%clk 0:02:54]}  Bg4 {[%clk 0:02:25]} 8. h3 {[%clk 0:02:51]}  Bxf3 {[%clk 0:02:24]} 9. Bxf3 {[%clk 0:02:41]}  dxc4 {[%clk 0:02:22]} 10. a4 {[%clk 0:02:30]}  Nbd7 {[%clk 0:02:13]} 11. Na3 {[%clk 0:02:17]}  e5 {[%clk 0:02:09]} 12. Nxc4 {[%clk 0:02:06]}  exd4 {[%clk 0:02:01]} 13. exd4 {[%clk 0:02:06]}  Nd5 {[%clk 0:01:58]} 14. Bg2 {[%clk 0:01:49]}  N7b6 {[%clk 0:01:58]} 15. Ne5 {[%clk 0:01:40]}  Qd6 {[%clk 0:01:51]} 16. Nf3 {[%clk 0:01:15]}  a5 {[%clk 0:01:49]} 17. Re1 {[%clk 0:01:04]}  Rfe8 {[%clk 0:01:47]} 18. Rxe8+ {[%clk 0:01:00]}  Rxe8 {[%clk 0:01:46]} 19. Bd2 {[%clk 0:01:00]}  Nc4 {[%clk 0:01:45]} 20. Bc3 {[%clk 0:00:53]}  Nxc3 {[%clk 0:01:27]} 21. bxc3 {[%clk 0:00:52]}  b5 {[%clk 0:01:27]} 22. Qb3 {[%clk 0:00:36]}  Qd7 {[%clk 0:01:24]} 23. Kh2 {[%clk 0:00:20]}  h5 {[%clk 0:01:22]} 24. axb5 {[%clk 0:00:19]}  cxb5 {[%clk 0:01:21]} 25. Qc2 {[%clk 0:00:19]}  a4 {[%clk 0:01:17]} 26. Re1 {[%clk 0:00:18]}  Rxe1 {[%clk 0:01:16]} 27. Nxe1 {[%clk 0:00:19]}  a3 {[%clk 0:01:16]} 28. Nd3 {[%clk 0:00:18]}  Qa7 {[%clk 0:01:12]} 29. Nb4 {[%clk 0:00:19]}  Bf8 {[%clk 0:01:12]} 30. d5 {[%clk 0:00:18]}  Bxb4 {[%clk 0:01:11]} 31. cxb4 {[%clk 0:00:17]}  a2 {[%clk 0:01:11]} 32. d6 {[%clk 0:00:13]}  a1=Q {[%clk 0:01:10]} 33. d7 {[%clk 0:00:09]}  Qxd7 {[%clk 0:01:09]} 0-1

[Event "December 19 Late 2023"]
[Site "https://www.chess.com"]
[Date "2023.12.19"]
[Round "1"]
[White "Fiedorek, Michal"]
[Black "Egorov, Konstantin"]
[Result "0-1"]
[Board "187"]
[TimeControl "180+1"]
[WhiteFideId "1199528"]
[BlackFideId "24154369"]
[WhiteElo "2135"]
[BlackElo "1878"]
[WhiteTeam "POL"]
[BlackTeam "RUS"]
[WhiteClock "0:02:48"]
[BlackClock "0:01:56"]

1. e4 {[%clk 0:02:59]}  c5 {[%clk 0:02:59]} 2. Nf3 {[%clk 0:02:59]}  e6 {[%clk 0:02:59]} 3. c3 {[%clk 0:02:59]}  Nf6 {[%clk 0:02:59]} 4. e5 {[%clk 0:02:59]}  Nd5 {[%clk 0:03:00]} 5. d4 {[%clk 0:03:00]}  cxd4 {[%clk 0:03:00]} 6. cxd4 {[%clk 0:03:01]}  Nc6 {[%clk 0:03:00]} 7. Nc3 {[%clk 0:03:01]}  d6 {[%clk 0:02:53]} 8. exd6 {[%clk 0:03:00]}  Bxd6 {[%clk 0:02:52]} 9. Bc4 {[%clk 0:03:01]}  O-O {[%clk 0:02:13]} 10. O-O {[%clk 0:02:59]}  Nxc3 {[%clk 0:02:07]} 11. bxc3 {[%clk 0:02:58]}  b6 {[%clk 0:02:05]} 12. Bg5 {[%clk 0:02:51]}  Qc7 {[%clk 0:02:00]} 13. h4 {[%clk 0:02:51]}  Na5 {[%clk 0:02:00]} 14. Bd3 {[%clk 0:02:48]}  h6 {[%clk 0:01:56]} 0-1

[Event "December 19 Late 2023"]
[Site "https://www.chess.com"]
[Date "2023.12.19"]
[Round "1"]
[White "UnTucopalaTimba"]
[Black "Korchynskyi, Mykola"]
[Result "0-1"]
[Board "188"]
[TimeControl "180+1"]
[BlackFideId "34138005"]
[WhiteElo "1961"]
[BlackElo "2007"]
[BlackTeam "UKR"]
[WhiteClock "0:00:00"]
[BlackClock "0:00:38"]

1. e4 {[%clk 0:03:00]}  e6 {[%clk 0:02:57]} 2. d4 {[%clk 0:03:00]}  d5 {[%clk 0:02:58]} 3. e5 {[%clk 0:03:00]}  c5 {[%clk 0:02:47]} 4. c3 {[%clk 0:02:56]}  Nc6 {[%clk 0:02:41]} 5. Nf3 {[%clk 0:02:54]}  Qb6 {[%clk 0:02:28]} 6. Be2 {[%clk 0:02:45]}  cxd4 {[%clk 0:02:23]} 7. cxd4 {[%clk 0:02:44]}  Nge7 {[%clk 0:02:24]} 8. Bd3 {[%clk 0:02:41]}  Bd7 {[%clk 0:02:22]} 9. Bc2 {[%clk 0:02:39]}  Nf5 {[%clk 0:02:18]} 10. Bxf5 {[%clk 0:02:38]}  exf5 {[%clk 0:02:19]} 11. O-O {[%clk 0:02:38]}  Be7 {[%clk 0:02:20]} 12. Nc3 {[%clk 0:02:35]}  Be6 {[%clk 0:02:21]} 13. a3 {[%clk 0:02:28]}  O-O {[%clk 0:02:06]} 14. b4 {[%clk 0:02:27]}  a6 {[%clk 0:01:52]} 15. Be3 {[%clk 0:02:18]}  Rac8 {[%clk 0:01:50]} 16. Qb3 {[%clk 0:02:15]}  Rfd8 {[%clk 0:01:42]} 17. Rab1 {[%clk 0:02:09]}  Qa7 {[%clk 0:01:35]} 18. Na4 {[%clk 0:02:06]}  b6 {[%clk 0:01:33]} 19. Rbc1 {[%clk 0:02:01]}  Qb7 {[%clk 0:01:28]} 20. Nb2 {[%clk 0:01:50]}  Nb8 {[%clk 0:01:22]} 21. Nd3 {[%clk 0:01:48]}  Nd7 {[%clk 0:01:22]} 22. Nf4 {[%clk 0:01:46]}  b5 {[%clk 0:01:11]} 23. Nxe6 {[%clk 0:01:45]}  fxe6 {[%clk 0:01:10]} 24. Bg5 {[%clk 0:01:44]}  Nb6 {[%clk 0:01:11]} 25. Bxe7 {[%clk 0:01:38]}  Qxe7 {[%clk 0:01:12]} 26. Qe3 {[%clk 0:01:22]}  Nc4 {[%clk 0:01:11]} 27. Qd3 {[%clk 0:01:21]}  Rc7 {[%clk 0:01:10]} 28. Qb3 {[%clk 0:01:16]}  Rdc8 {[%clk 0:01:09]} 29. Ra1 {[%clk 0:01:01]}  Nb6 {[%clk 0:01:06]} 30. Qe3 {[%clk 0:00:54]}  Na4 {[%clk 0:01:05]} 31. Qg5 {[%clk 0:00:51]}  Qf7 {[%clk 0:01:03]} 32. Qf4 {[%clk 0:00:44]}  Nc3 {[%clk 0:01:02]} 33. Qd2 {[%clk 0:00:38]}  Ne4 {[%clk 0:01:02]} 34. Qf4 {[%clk 0:00:35]}  h6 {[%clk 0:01:01]} 35. h4 {[%clk 0:00:34]}  Rc2 {[%clk 0:00:59]} 36. Ne1 {[%clk 0:00:23]}  Re2 {[%clk 0:00:56]} 37. Nf3 {[%clk 0:00:19]}  Rcc2 {[%clk 0:00:52]} 38. Rae1 {[%clk 0:00:18]}  Rxf2 {[%clk 0:00:52]} 39. Rxf2 {[%clk 0:00:18]}  Nxf2 {[%clk 0:00:50]} 40. Rf1 {[%clk 0:00:14]}  Ne4 {[%clk 0:00:51]} 41. Rc1 {[%clk 0:00:13]}  Qc7 {[%clk 0:00:49]} 42. Rxc2 {[%clk 0:00:12]}  Qxc2 {[%clk 0:00:50]} 43. Kh2 {[%clk 0:00:10]}  Qf2 {[%clk 0:00:47]} 44. h5 {[%clk 0:00:08]}  Kh7 {[%clk 0:00:44]} 45. Qc1 {[%clk 0:00:06]}  Qg3+ {[%clk 0:00:38]} 46. Kh1 {[%clk 0:00:06]}  Nf2+ {[%clk 0:00:37]} 47. Kg1 {[%clk 0:00:05]}  Nh3+ {[%clk 0:00:38]} 48. Kh1 {[%clk 0:00:03]}  Nf4 {[%clk 0:00:38]} 49. Qf1 {[%clk 0:00:00]}  Nxh5 {[%clk 0:00:38]} 0-1

[Event "December 19 Late 2023"]
[Site "https://www.chess.com"]
[Date "2023.12.19"]
[Round "1"]
[White "Rogov, Matfey"]
[Black "Vargas, Mauricio"]
[Result "1-0"]
[Board "191"]
[TimeControl "180+1"]
[WhiteFideId "44191308"]
[BlackFideId "4404572"]
[WhiteElo "2057"]
[BlackElo "1982"]
[WhiteTeam "RUS"]
[BlackTeam "COL"]
[WhiteClock "0:02:07"]
[BlackClock "0:02:18"]

1. Nc3 {[%clk 0:02:57]}  e5 {[%clk 0:02:55]} 2. Nf3 {[%clk 0:02:56]}  d6 {[%clk 0:02:54]} 3. e4 {[%clk 0:02:52]}  f5 {[%clk 0:02:53]} 4. exf5 {[%clk 0:02:48]}  Bxf5 {[%clk 0:02:52]} 5. d4 {[%clk 0:02:48]}  e4 {[%clk 0:02:51]} 6. Ng5 {[%clk 0:02:45]}  d5 {[%clk 0:02:47]} 7. f3 {[%clk 0:02:39]}  h6 {[%clk 0:02:46]} 8. fxe4 {[%clk 0:02:36]}  dxe4 {[%clk 0:02:41]} 9. Ngxe4 {[%clk 0:02:31]}  Qe7 {[%clk 0:02:40]} 10. Bd3 {[%clk 0:02:18]}  Nf6 {[%clk 0:02:36]} 11. O-O {[%clk 0:02:18]}  Nxe4 {[%clk 0:02:33]} 12. Nxe4 {[%clk 0:02:14]}  Bxe4 {[%clk 0:02:32]} 13. Bxe4 {[%clk 0:02:14]}  Nc6 {[%clk 0:02:28]} 14. Qh5+ {[%clk 0:02:13]}  Kd7 {[%clk 0:02:25]} 15. Rf7 {[%clk 0:02:11]}  Nxd4 {[%clk 0:02:23]} 16. Rxe7+ {[%clk 0:02:09]}  Bxe7 {[%clk 0:02:23]} 17. Qd5+ {[%clk 0:02:09]}  Bd6 {[%clk 0:02:22]} 18. Qxd4 {[%clk 0:02:06]}  Rad8 {[%clk 0:02:23]} 19. Bf5+ {[%clk 0:02:06]}  Ke7 {[%clk 0:02:21]} 20. Qxg7+ {[%clk 0:02:06]}  Ke8 {[%clk 0:02:18]} 21. Bg6# {[%clk 0:02:07]} 1-0

[Event "December 19 Late 2023"]
[Site "https://www.chess.com"]
[Date "2023.12.19"]
[Round "2"]
[White "Vlassov, Nikolai"]
[Black "Nakamura, Hikaru"]
[Result "0-1"]
[Board "1"]
[TimeControl "180+1"]
[WhiteFideId "4103360"]
[BlackFideId "2016192"]
[WhiteElo "2351"]
[BlackElo "2874"]
[WhiteTeam "FID"]
[BlackTeam "USA"]
[WhiteClock "0:00:18"]
[BlackClock "0:01:42"]

1. e4 {[%clk 0:03:00]}  e6 {[%clk 0:02:57]} 2. d4 {[%clk 0:02:58]}  d5 {[%clk 0:02:57]} 3. e5 {[%clk 0:02:59]}  b6 {[%clk 0:02:57]} 4. c3 {[%clk 0:02:56]}  Qd7 {[%clk 0:02:57]} 5. Nf3 {[%clk 0:02:53]}  Ba6 {[%clk 0:02:57]} 6. Bxa6 {[%clk 0:02:52]}  Nxa6 {[%clk 0:02:58]} 7. O-O {[%clk 0:02:52]}  c5 {[%clk 0:02:58]} 8. Be3 {[%clk 0:02:51]}  Ne7 {[%clk 0:02:54]} 9. Nbd2 {[%clk 0:02:47]}  Nf5 {[%clk 0:02:53]} 10. Qe2 {[%clk 0:02:39]}  Nc7 {[%clk 0:02:52]} 11. Rfd1 {[%clk 0:02:37]}  Be7 {[%clk 0:02:50]} 12. Nf1 {[%clk 0:02:37]}  Qb5 {[%clk 0:02:49]} 13. Qxb5+ {[%clk 0:02:30]}  Nxb5 {[%clk 0:02:50]} 14. Ng3 {[%clk 0:02:29]}  Nxg3 {[%clk 0:02:39]} 15. hxg3 {[%clk 0:02:29]}  Nc7 {[%clk 0:02:36]} 16. b3 {[%clk 0:02:24]}  c4 {[%clk 0:02:33]} 17. bxc4 {[%clk 0:02:14]}  dxc4 {[%clk 0:02:33]} 18. Nd2 {[%clk 0:02:13]}  Nd5 {[%clk 0:02:32]} 19. Rdc1 {[%clk 0:02:07]}  Rc8 {[%clk 0:02:31]} 20. a4 {[%clk 0:02:05]}  Kd7 {[%clk 0:02:31]} 21. Ne4 {[%clk 0:02:04]}  a6 {[%clk 0:02:31]} 22. Kf1 {[%clk 0:02:03]}  Kc6 {[%clk 0:02:31]} 23. Ke2 {[%clk 0:02:03]}  h6 {[%clk 0:02:31]} 24. g4 {[%clk 0:02:01]}  Ra8 {[%clk 0:02:29]} 25. Ra2 {[%clk 0:01:55]}  b5 {[%clk 0:02:26]} 26. axb5+ {[%clk 0:01:55]}  axb5 {[%clk 0:02:27]} 27. Rca1 {[%clk 0:01:55]}  Rxa2+ {[%clk 0:02:26]} 28. Rxa2 {[%clk 0:01:55]}  Kb7 {[%clk 0:02:22]} 29. Bd2 {[%clk 0:01:55]}  f5 {[%clk 0:02:09]} 30. exf6 {[%clk 0:01:45]}  gxf6 {[%clk 0:02:10]} 31. f3 {[%clk 0:01:42]}  h5 {[%clk 0:02:10]} 32. g5 {[%clk 0:01:35]}  fxg5 {[%clk 0:02:10]} 33. Kf2 {[%clk 0:01:16]}  g4 {[%clk 0:02:09]} 34. Ra1 {[%clk 0:01:10]}  gxf3 {[%clk 0:02:08]} 35. gxf3 {[%clk 0:01:10]}  h4 {[%clk 0:02:08]} 36. Kg2 {[%clk 0:00:57]}  Rg8+ {[%clk 0:02:07]} 37. Kh3 {[%clk 0:00:57]}  Rf8 {[%clk 0:02:07]} 38. Kg4 {[%clk 0:00:54]}  Rg8+ {[%clk 0:02:06]} 39. Kh3 {[%clk 0:00:54]}  Nb6 {[%clk 0:02:01]} 40. Re1 {[%clk 0:00:49]}  Rg6 {[%clk 0:01:53]} 41. f4 {[%clk 0:00:45]}  Nd5 {[%clk 0:01:52]} 42. Rf1 {[%clk 0:00:39]}  Kc6 {[%clk 0:01:49]} 43. f5 {[%clk 0:00:39]}  exf5 {[%clk 0:01:50]} 44. Rxf5 {[%clk 0:00:39]}  Re6 {[%clk 0:01:50]} 45. Ng5 {[%clk 0:00:31]}  Bxg5 {[%clk 0:01:47]} 46. Bxg5 {[%clk 0:00:29]}  Re2 {[%clk 0:01:47]} 47. Kxh4 {[%clk 0:00:29]}  Rc2 {[%clk 0:01:43]} 48. Re5 {[%clk 0:00:26]}  Rxc3 {[%clk 0:01:43]} 49. Re6+ {[%clk 0:00:26]}  Kd7 {[%clk 0:01:43]} 50. Ra6 {[%clk 0:00:24]}  Rd3 {[%clk 0:01:41]} 51. Ra5 {[%clk 0:00:19]}  Kc6 {[%clk 0:01:41]} 52. Ra6+ {[%clk 0:00:19]}  Kb7 {[%clk 0:01:41]} 53. Rd6 {[%clk 0:00:19]}  Rxd4+ {[%clk 0:01:42]} 54. Kg3 {[%clk 0:00:19]}  b4 {[%clk 0:01:41]} 55. Kf3 {[%clk 0:00:19]}  b3 {[%clk 0:01:41]} 56. Bf6 {[%clk 0:00:19]}  Rd3+ {[%clk 0:01:41]} 57. Ke4 {[%clk 0:00:18]}  Nxf6+ {[%clk 0:01:41]} 58. Rxf6 {[%clk 0:00:18]}  b2 {[%clk 0:01:42]} 0-1

[Event "December 19 Late 2023"]
[Site "https://www.chess.com"]
[Date "2023.12.19"]
[Round "2"]
[White "Ibadov, Dashgyn"]
[Black "Caruana, Fabiano"]
[Result "0-1"]
[Board "3"]
[TimeControl "180+1"]
[WhiteFideId "24107514"]
[BlackFideId "2020009"]
[WhiteElo "2183"]
[BlackElo "2815"]
[WhiteTeam "FID"]
[BlackTeam "USA"]
[WhiteClock "0:00:00"]
[BlackClock "0:00:07"]

1. e4 {[%clk 0:03:00]}  c6 {[%clk 0:03:00]} 2. d4 {[%clk 0:03:01]}  d5 {[%clk 0:03:00]} 3. exd5 {[%clk 0:03:02]}  cxd5 {[%clk 0:03:00]} 4. Bd3 {[%clk 0:03:02]}  Nc6 {[%clk 0:03:00]} 5. c3 {[%clk 0:03:03]}  Qc7 {[%clk 0:03:00]} 6. h3 {[%clk 0:03:02]}  e6 {[%clk 0:02:58]} 7. Nf3 {[%clk 0:03:02]}  Bd6 {[%clk 0:02:57]} 8. O-O {[%clk 0:03:01]}  Nge7 {[%clk 0:02:58]} 9. Re1 {[%clk 0:02:59]}  f6 {[%clk 0:02:56]} 10. c4 {[%clk 0:02:58]}  O-O {[%clk 0:02:54]} 11. Nc3 {[%clk 0:02:56]}  a6 {[%clk 0:02:54]} 12. a3 {[%clk 0:02:46]}  Bd7 {[%clk 0:02:36]} 13. b4 {[%clk 0:02:35]}  Rae8 {[%clk 0:02:26]} 14. Qc2 {[%clk 0:02:34]}  dxc4 {[%clk 0:02:19]} 15. Bxh7+ {[%clk 0:02:30]}  Kh8 {[%clk 0:02:19]} 16. Be4 {[%clk 0:02:17]}  b5 {[%clk 0:02:07]} 17. Be3 {[%clk 0:01:53]}  f5 {[%clk 0:01:55]} 18. Bxc6 {[%clk 0:01:53]}  Nxc6 {[%clk 0:01:37]} 19. d5 {[%clk 0:01:47]}  Ne5 {[%clk 0:01:34]} 20. Nxe5 {[%clk 0:01:44]}  Bxe5 {[%clk 0:01:35]} 21. Rad1 {[%clk 0:01:43]}  Bf6 {[%clk 0:01:13]} 22. Bc5 {[%clk 0:01:39]}  Rf7 {[%clk 0:01:05]} 23. dxe6 {[%clk 0:01:39]}  Bxe6 {[%clk 0:01:02]} 24. Nd5 {[%clk 0:01:39]}  Qc8 {[%clk 0:00:56]} 25. Nf4 {[%clk 0:01:24]}  Bd7 {[%clk 0:00:53]} 26. Rxe8+ {[%clk 0:00:52]}  Qxe8 {[%clk 0:00:54]} 27. Qd2 {[%clk 0:00:43]}  c3 {[%clk 0:00:34]} 28. Qd5 {[%clk 0:00:43]}  Bg5 {[%clk 0:00:25]} 29. Ng6+ {[%clk 0:00:42]}  Kh7 {[%clk 0:00:25]} 30. Ne5 {[%clk 0:00:42]}  c2 {[%clk 0:00:26]} 31. Rf1 {[%clk 0:00:39]}  Be6 {[%clk 0:00:25]} 32. Qf3 {[%clk 0:00:33]}  c1=Q {[%clk 0:00:22]} 33. Rxc1 {[%clk 0:00:29]}  Bxc1 {[%clk 0:00:22]} 34. Nxf7 {[%clk 0:00:24]}  Qxf7 {[%clk 0:00:23]} 35. Qc6 {[%clk 0:00:21]}  Bd5 {[%clk 0:00:18]} 36. Qxa6 {[%clk 0:00:19]}  Qg6 {[%clk 0:00:18]} 37. Qxg6+ {[%clk 0:00:19]}  Kxg6 {[%clk 0:00:19]} 38. f3 {[%clk 0:00:20]}  Bxa3 {[%clk 0:00:19]} 39. Kf2 {[%clk 0:00:20]}  f4 {[%clk 0:00:19]} 40. g3 {[%clk 0:00:19]}  fxg3+ {[%clk 0:00:19]} 41. Kxg3 {[%clk 0:00:20]}  Kf5 {[%clk 0:00:19]} 42. h4 {[%clk 0:00:15]}  g6 {[%clk 0:00:19]} 43. Bd6 {[%clk 0:00:14]}  Bb2 {[%clk 0:00:19]} 44. Bc5 {[%clk 0:00:14]}  Be5+ {[%clk 0:00:19]} 45. Kf2 {[%clk 0:00:14]}  Bf4 {[%clk 0:00:19]} 46. Bd4 {[%clk 0:00:13]}  Bd6 {[%clk 0:00:19]} 47. Bc3 {[%clk 0:00:13]}  Be7 {[%clk 0:00:19]} 48. Kg3 {[%clk 0:00:13]}  Bf6 {[%clk 0:00:20]} 49. Bd2 {[%clk 0:00:12]}  Be5+ {[%clk 0:00:20]} 50. Kf2 {[%clk 0:00:12]}  Bf4 {[%clk 0:00:20]} 51. Bc3 {[%clk 0:00:12]}  Bd6 {[%clk 0:00:20]} 52. Bd2 {[%clk 0:00:11]}  Be5 {[%clk 0:00:20]} 53. Kg2 {[%clk 0:00:10]}  Ke6 {[%clk 0:00:11]} 54. Kf2 {[%clk 0:00:09]}  Bc6 {[%clk 0:00:11]} 55. Ke3 {[%clk 0:00:07]}  Kd5 {[%clk 0:00:12]} 56. f4 {[%clk 0:00:05]}  Bf6 {[%clk 0:00:12]} 57. f5 {[%clk 0:00:04]}  gxf5 {[%clk 0:00:12]} 58. Be1 {[%clk 0:00:02]}  Be5 {[%clk 0:00:11]} 59. h5 {[%clk 0:00:02]}  Be8 {[%clk 0:00:11]} 60. h6 {[%clk 0:00:02]}  Bg6 {[%clk 0:00:11]} 61. Kf3 {[%clk 0:00:02]}  Ke6 {[%clk 0:00:09]} 62. Ke3 {[%clk 0:00:02]}  f4+ {[%clk 0:00:09]} 63. Kf3 {[%clk 0:00:02]}  Kf5 {[%clk 0:00:09]} 64. Bd2 {[%clk 0:00:02]}  Kg5 {[%clk 0:00:07]} 65. Kf2 {[%clk 0:00:00]}  Kxh6 {[%clk 0:00:07]} 0-1